fUSD/lending_fUSD_20240814
["ID","MTS","AMOUNT","RATE_DAILY","PERIOD"]
[334841102,1723607471576,-500.0,0.0001452,2]
[334841103,1723607471586,-508.15,0.0001452,2]
[334841104,1723607471595,-793.09,0.0001452,2]
[334841105,1723607471604,-500.0,0.0001452,2]
[334841106,1723607471613,-500.0,0.0001452,2]
[334841107,1723607471622,-500.0,0.0001452,2]
[334841108,1723607471633,-500.0,0.0001452,2]
[334841109,1723607471643,-1244.25,0.0001452,2]
[334841110,1723607471753,-808.2,0.0001452,2]
[334841111,1723607471762,-1870.71,0.0001452,2]
[334841112,1723607471772,-500.0,0.0001452,2]
[334841113,1723607471782,-1020.02,0.0001452,2]
[334841114,1723607471791,-500.0,0.0001452,2]
[334841115,1723607471800,-1386.1,0.0001452,2]
[334841116,1723607471809,-732.86,0.0001452,2]
[334841117,1723607471818,-500.0,0.0001452,2]
[334841118,1723607471827,-500.0,0.0001452,2]
[334841119,1723607471836,-500.0,0.0001452,2]
[334841120,1723607471845,-1778.14,0.0001452,2]
[334841121,1723607471855,-400.0,0.0001452,2]
[334841122,1723607471864,-1254.8,0.0001452,2]
[334841123,1723607471874,-2294.9,0.0001452,2]
[334841124,1723607471885,-500.0,0.0001452,2]
[334841125,1723607471894,-1685.71,0.0001452,2]
[334841126,1723607471904,-1045.4,0.0001452,2]
[334841127,1723607471913,-769.79,0.0001452,2]
[334841128,1723607471923,-500.0,0.0001452,2]
[334841129,1723607471932,-829.12,0.0001452,2]
[334841130,1723607471941,-290.01537202,0.0001452,2]
[334841131,1723607471950,-1819.06,0.0001452,2]
[334841132,1723607471959,-584.66,0.0001452,2]
[334841133,1723607471968,-865.12,0.0001452,2]
[334841134,1723607471977,-1828.3,0.0001452,2]
[334841135,1723607471986,-1487.62,0.0001452,2]
[334841136,1723607471994,-1120.95,0.0001452,2]
[334841137,1723607472004,-1122.91,0.0001452,2]
[334841138,1723607472013,-862.4,0.0001452,2]
[334841139,1723607472023,-849.24,0.0001452,2]
[334841140,1723607472032,-1564.47,0.0001452,2]
[334841141,1723607472041,-500.0,0.0001452,2]
[334841142,1723607472050,-866.92,0.0001452,2]
[334841143,1723607472060,-500.0,0.0001452,2]
[334841144,1723607472069,-1212.45,0.0001452,2]
[334841145,1723607472078,-2613.0,0.0001452,2]
[334841146,1723607472087,-1055.57,0.0001452,2]
[334841147,1723607472097,-1994.05,0.0001452,2]
[334841148,1723607472107,-857.51,0.0001452,2]
[334841149,1723607472117,-1338.26,0.0001452,2]
[334841150,1723607472128,-1351.32,0.0001452,2]
[334841151,1723607472140,-500.0,0.0001452,2]
[334841152,1723607472149,-500.0,0.0001452,2]
[334841153,1723607472159,-2029.71,0.0001452,2]
[334841154,1723607472169,-1111.34,0.0001452,2]
[334841155,1723607472178,-500.0,0.0001452,2]
[334841156,1723607472186,-500.0,0.0001452,2]
[334841157,1723607472196,-3777.94,0.0001452,2]
[334841158,1723607472206,-500.0,0.0001452,2]
[334841159,1723607472215,-921.58,0.0001452,2]
[334841160,1723607472225,-500.0,0.0001452,2]
[334841161,1723607472234,-689.07,0.0001452,2]
[334841162,1723607472243,-517.67948009,0.0001452,2]
[334841163,1723607472252,-833.34,0.0001452,2]
[334841164,1723607472261,-500.0,0.0001452,2]
[334841165,1723607472270,-500.0,0.0001452,2]
[334841166,1723607472280,-589.77,0.0001452,2]
[334841167,1723607472290,-568.61,0.0001452,2]
[334841168,1723607472299,-500.0,0.0001452,2]
[334841169,1723607472309,-500.0,0.0001452,2]
[334841170,1723607472318,-1554.5,0.0001452,2]
[334841171,1723607472327,-500.0,0.0001452,2]
[334841172,1723607472336,-1921.5,0.0001452,2]
[334841173,1723607472345,-500.0,0.0001452,2]
[334841174,1723607472354,-500.0,0.0001452,2]
[334841175,1723607472363,-783.79,0.0001452,2]
[334841176,1723607472373,-2631.07,0.0001452,2]
[334841177,1723607472385,-500.0,0.0001452,2]
[334841178,1723607472394,-500.0,0.0001452,2]
[334841179,1723607472403,-505.7,0.0001452,2]
[334841180,1723607472412,-500.0,0.0001452,2]
[334841181,1723607472422,-573.43,0.0001452,2]
[334841182,1723607472432,-1200.87,0.0001452,2]
[334841183,1723607472441,-500.0,0.0001452,2]
[334841184,1723607472450,-1361.66,0.0001452,2]
[334841185,1723607472460,-2549.22,0.0001452,2]
[334841186,1723607472469,-500.0,0.0001452,2]
[334841187,1723607472479,-592.75,0.0001452,2]
[334841188,1723607472488,-1917.84,0.0001452,2]
[334841189,1723607472498,-965.13,0.0001452,2]
[334841190,1723607472507,-1397.22,0.0001452,2]
[334841191,1723607472516,-500.0,0.0001452,2]
[334841192,1723607472525,-1460.11,0.0001452,2]
[334841193,1723607472535,-2325.52,0.0001452,2]
[334841194,1723607472544,-500.0,0.0001452,2]
[334841195,1723607472553,-500.0,0.0001452,2]
[334841196,1723607472562,-844.41,0.0001452,2]
[334841197,1723607472572,-764.1,0.0001452,2]
[334841198,1723607472581,-1274.82,0.0001452,2]
[334841199,1723607472590,-1259.41,0.0001452,2]
[334841200,1723607472600,-500.0,0.0001452,2]
[334841201,1723607472609,-500.0,0.0001452,2]
[334841202,1723607472619,-500.0,0.0001452,2]
[334841203,1723607472628,-851.27,0.0001452,2]
[334841204,1723607472638,-929.25,0.0001452,2]
[334841205,1723607472647,-2127.39,0.0001452,2]
[334841206,1723607472656,-883.88,0.0001452,2]
[334841207,1723607472666,-512.16,0.0001452,2]
[334841208,1723607472676,-589.33,0.0001452,2]
[334841209,1723607472686,-1891.32,0.0001452,2]
[334841210,1723607472696,-500.0,0.0001452,2]
[334841211,1723607472705,-1630.74,0.0001452,2]
[334841212,1723607472714,-2624.85,0.0001452,2]
[334841213,1723607472724,-2240.02,0.0001452,2]
[334841214,1723607472733,-2114.43,0.0001452,2]
[334841215,1723607472743,-500.0,0.0001452,2]
[334841216,1723607472752,-2489.36,0.0001452,2]
[334841217,1723607472761,-1834.05,0.0001452,2]
[334841218,1723607472770,-514.91,0.0001452,2]
[334841219,1723607472780,-530.28,0.0001452,2]
[334841220,1723607472789,-500.0,0.0001452,2]
[334841221,1723607472798,-657.56,0.0001452,2]
[334841222,1723607472808,-580.46,0.0001452,2]
[334841223,1723607472817,-500.0,0.0001452,2]
[334841224,1723607472827,-1292.57,0.0001452,2]
[334841225,1723607472836,-500.0,0.0001452,2]
[334841226,1723607472845,-2155.23,0.0001452,2]
[334841227,1723607472855,-500.0,0.0001452,2]
[334841228,1723607472864,-729.49,0.0001452,2]
[334841229,1723607472873,-803.11,0.0001452,2]
[334841230,1723607472883,-500.0,0.0001452,2]
[334841231,1723607472892,-500.0,0.0001452,2]
[334841232,1723607472901,-784.66,0.0001452,2]
[334841233,1723607472910,-500.0,0.0001452,2]
[334841234,1723607472919,-985.66,0.0001452,2]
[334841235,1723607472929,-1484.83,0.0001452,2]
[334841236,1723607472938,-558.89,0.0001452,2]
[334841237,1723607472947,-1171.57,0.0001452,2]
[334841238,1723607472956,-500.0,0.0001452,2]
[334841239,1723607472965,-961.68,0.0001452,2]
[334841240,1723607472974,-1433.08,0.0001452,2]
[334841241,1723607472983,-644.74,0.0001452,2]
[334841242,1723607472993,-1605.56,0.0001452,2]
[334841243,1723607473001,-544.66,0.0001452,2]
[334841244,1723607473011,-500.0,0.0001452,2]
[334841245,1723607473020,-500.0,0.0001452,2]
[334841246,1723607473029,-671.88,0.0001452,2]
[334841247,1723607473038,-966.64,0.0001452,2]
[334841248,1723607473048,-1438.91,0.0001452,2]
[334841249,1723607473057,-3279.05,0.0001452,2]
[334841250,1723607473067,-1269.61,0.0001452,2]
[334841251,1723607473076,-2431.77,0.0001452,2]
[334841252,1723607473086,-1897.29,0.0001452,2]
[334841253,1723607473095,-500.0,0.0001452,2]
[334841254,1723607473104,-1900.43,0.0001452,2]
[334841255,1723607473114,-2321.53,0.0001452,2]
[334841256,1723607473126,-500.0,0.0001452,2]
[334841257,1723607473136,-500.0,0.0001452,2]
[334841258,1723607473145,-1225.74,0.0001452,2]
[334841259,1723607473154,-751.13,0.0001452,2]
[334841260,1723607473164,-500.0,0.0001452,2]
[334841261,1723607473173,-2710.3,0.0001452,2]
[334841262,1723607473182,-500.0,0.0001452,2]
[334841263,1723607473191,-590.22,0.0001452,2]
[334841264,1723607473202,-1784.2,0.0001452,2]
[334841265,1723607473213,-1096.21,0.0001452,2]
[334841266,1723607473222,-500.0,0.0001452,2]
[334841267,1723607473232,-500.0,0.0001452,2]
[334841268,1723607473241,-500.0,0.0001452,2]
[334841269,1723607473250,-500.0,0.0001452,2]
[334841270,1723607473259,-500.0,0.0001452,2]
[334841271,1723607473268,-500.0,0.0001452,2]
[334841272,1723607473278,-843.23,0.0001452,2]
[334841273,1723607473288,-500.0,0.0001452,2]
[334841274,1723607473297,-500.0,0.0001452,2]
[334841275,1723607473306,-500.0,0.0001452,2]
[334841276,1723607473315,-630.2,0.0001452,2]
[334841277,1723607473324,-500.0,0.0001452,2]
[334841278,1723607473334,-500.0,0.0001452,2]
[334841279,1723607473343,-1522.48,0.0001452,2]
[334841280,1723607473352,-500.0,0.0001452,2]
[334841281,1723607473361,-913.08,0.0001452,2]
[334841282,1723607473370,-648.5,0.0001452,2]
[334841283,1723607473381,-500.0,0.0001452,2]
[334841284,1723607473390,-1893.09,0.0001452,2]
[334841285,1723607473399,-915.27,0.0001452,2]
[334841286,1723607473409,-500.0,0.0001452,2]
[334841287,1723607473418,-2186.94,0.0001452,2]
[334841288,1723607473427,-3275.38,0.0001452,2]
[334841289,1723607473437,-500.0,0.0001452,2]
[334841290,1723607473447,-500.0,0.0001452,2]
[334841291,1723607473453,-1677.03,0.0001452,2]
[334841292,1723607473462,-500.0,0.0001452,2]
[334841293,1723607473474,-1309.3,0.0001452,2]
[334841294,1723607473483,-856.83,0.0001452,2]
[334841295,1723607473492,-500.0,0.0001452,2]
[334841296,1723607473502,-500.0,0.0001452,2]
[334841297,1723607473511,-794.25,0.0001452,2]
[334841298,1723607473521,-1414.57,0.0001452,2]
[334841299,1723607473530,-1252.5,0.0001452,2]
[334841300,1723607473540,-3148.01,0.0001452,2]
[334841301,1723607473549,-1119.98,0.0001452,2]
[334841302,1723607473559,-696.1,0.0001452,2]
[334841303,1723607473568,-500.0,0.0001452,2]
[334841304,1723607473578,-500.0,0.0001452,2]
[334841305,1723607473588,-3372.08,0.0001452,2]
[334841306,1723607473597,-500.0,0.0001452,2]
[334841307,1723607473607,-1053.98,0.0001452,2]
[334841308,1723607473617,-1421.12,0.0001452,2]
[334841309,1723607473627,-500.0,0.0001452,2]
[334841310,1723607473638,-6656.08,0.0001452,2]
[334841311,1723607473647,-863.04,0.0001452,2]
[334841312,1723607473657,-1185.24,0.0001452,2]
[334841313,1723607473667,-500.0,0.0001452,2]
[334841314,1723607473676,-640.54,0.0001452,2]
[334841315,1723607473686,-500.0,0.0001452,2]
[334841316,1723607473696,-1337.92,0.0001452,2]
[334841317,1723607473705,-500.0,0.0001452,2]
[334841318,1723607473714,-881.61,0.0001452,2]
[334841319,1723607473724,-500.0,0.0001452,2]
[334841320,1723607473733,-500.0,0.0001452,2]
[334841321,1723607473743,-4803.1,0.0001452,2]
[334841322,1723607473752,-548.08,0.0001452,2]
[334841323,1723607473762,-500.0,0.0001452,2]
[334841324,1723607473772,-3535.74,0.0001452,2]
[334841325,1723607473781,-500.0,0.0001452,2]
[334841326,1723607473791,-500.0,0.0001452,2]
[334841327,1723607473800,-1286.34,0.0001452,2]
[334841328,1723607473810,-700.94,0.0001452,2]
[334841329,1723607473820,-500.0,0.0001452,2]
[334841330,1723607473829,-500.0,0.0001452,2]
[334841331,1723607473838,-500.0,0.0001452,2]
[334841332,1723607473848,-500.0,0.0001452,2]
[334841333,1723607473857,-500.0,0.0001452,2]
[334841334,1723607473867,-605.71,0.0001452,2]
[334841335,1723607473877,-500.0,0.0001452,2]
[334841336,1723607473888,-500.0,0.0001452,2]
[334841337,1723607473898,-500.0,0.0001452,2]
[334841338,1723607473909,-500.0,0.0001452,2]
[334841339,1723607473919,-2533.03,0.0001452,2]
[334841340,1723607473929,-655.89,0.0001452,2]
[334841341,1723607473938,-528.71,0.0001452,2]
[334841342,1723607473948,-500.0,0.0001452,2]
[334841343,1723607473958,-500.0,0.0001452,2]
[334841344,1723607473968,-694.17,0.0001452,2]
[334841345,1723607473977,-500.0,0.0001452,2]
[334841346,1723607473987,-1287.07,0.0001452,2]
[334841347,1723607473998,-764.7,0.0001452,2]
[334841348,1723607474007,-7712.44,0.0001452,2]
[334841349,1723607474016,-500.0,0.0001452,2]
[334841350,1723607474026,-826.02,0.0001452,2]
[334841351,1723607474036,-3051.08,0.0001452,2]
[334841352,1723607474047,-500.0,0.0001452,2]
[334841353,1723607474056,-2301.35,0.0001452,2]
[334841354,1723607474067,-892.62,0.0001452,2]
[334841355,1723607474076,-500.0,0.0001452,2]
[334841356,1723607474085,-573.74,0.0001452,2]
[334841357,1723607474095,-500.0,0.0001452,2]
[334841358,1723607474105,-1107.8,0.0001452,2]
[334841359,1723607474114,-1861.4,0.0001452,2]
[334841360,1723607474128,-500.0,0.0001452,2]
[334841361,1723607474138,-2273.24,0.0001452,2]
[334841362,1723607474147,-2591.06,0.0001452,2]
[334841363,1723607474166,-500.0,0.0001452,2]
[334841364,1723607474176,-665.28,0.0001452,2]
[334841365,1723607474185,-757.85,0.0001452,2]
[334841366,1723607474195,-500.0,0.0001452,2]
[334841367,1723607474205,-618.25,0.0001452,2]
[334841368,1723607474214,-2359.68,0.0001452,2]
[334841369,1723607474223,-500.0,0.0001452,2]
[334841370,1723607474232,-1206.64,0.0001452,2]
[334841371,1723607474242,-992.14,0.0001452,2]
[334841372,1723607474251,-616.31,0.0001452,2]
[334841373,1723607474260,-500.0,0.0001452,2]
[334841374,1723607474269,-500.0,0.0001452,2]
[334841375,1723607474278,-1728.26,0.0001452,2]
[334841376,1723607474287,-1436.09,0.0001452,2]
[334841377,1723607474298,-1282.64,0.0001452,2]
[334841378,1723607474307,-500.0,0.0001452,2]
[334841379,1723607474317,-1719.54,0.0001452,2]
[334841380,1723607474327,-1106.45,0.0001452,2]
[334841381,1723607474342,-567.82,0.0001452,2]
[334841382,1723607474352,-21892.84,0.0001452,2]
[334841383,1723607474361,-1004.98,0.0001452,2]
[334841384,1723607474371,-1425.33,0.0001452,2]
[334841385,1723607474380,-12983.85,0.0001452,2]
[334841386,1723607474390,-500.0,0.0001452,2]
[334841387,1723607474403,-794.39,0.0001452,2]
[334841388,1723607474412,-500.0,0.0001452,2]
[334841389,1723607474421,-947.71,0.0001452,2]
[334841390,1723607474430,-1334.68,0.0001452,2]
[334841391,1723607474439,-2185.69,0.0001452,2]
[334841392,1723607474449,-74311.05,0.0001452,2]
[334841393,1723607474458,-2926.39,0.0001452,2]
[334841394,1723607474467,-11265.49,0.0001452,2]
[334841395,1723607474476,-500.0,0.0001452,2]
[334841396,1723607474486,-827.11,0.0001452,2]
[334841397,1723607474495,-684.84,0.0001452,2]
[334841398,1723607474505,-19652.25,0.0001452,2]
[334841399,1723607474514,-500.0,0.0001452,2]
[334841400,1723607474524,-949.5,0.0001452,2]
[334841401,1723607474532,-514.46533971,0.0001452,2]
[334841402,1723607474541,-500.0,0.0001452,2]
[334841403,1723607474550,-2325.77,0.0001452,2]
[334841404,1723607474559,-1060.07,0.0001452,2]
[334841405,1723607474568,-500.0,0.0001452,2]
[334841406,1723607474577,-931.34,0.0001452,2]
[334841407,1723607474587,-500.0,0.0001452,2]
[334841408,1723607474597,-11770.95,0.0001452,2]
[334841409,1723607474607,-542.79,0.0001452,2]
[334841410,1723607474616,-3216.15,0.0001452,2]
[334841411,1723607474625,-996.72,0.0001452,2]
[334841412,1723607474634,-504.68028408,0.0001452,2]
[334841413,1723607474644,-500.0,0.0001452,2]
[334841414,1723607474653,-500.0,0.0001452,2]
[334841415,1723607474663,-864.22,0.0001452,2]
[334841416,1723607474671,-1090.63,0.0001452,2]
[334841417,1723607474680,-754.69,0.0001452,2]
[334841418,1723607474689,-500.0,0.0001452,2]
[334841419,1723607474698,-4142.45,0.0001452,2]
[334841420,1723607474707,-500.0,0.0001452,2]
[334841421,1723607474716,-16309.16,0.0001452,2]
[334841422,1723607474725,-2654.22,0.0001452,2]
[334841423,1723607474735,-500.0,0.0001452,2]
[334841424,1723607474744,-25466.62,0.0001452,2]
[334841425,1723607474754,-500.0,0.0001452,2]
[334841426,1723607474764,-519.09,0.0001452,2]
[334841427,1723607474773,-4541.96,0.0001452,2]
[334841428,1723607474782,-500.0,0.0001452,2]
[334841429,1723607474792,-539.83,0.0001452,2]
[334841430,1723607474801,-510.46758093,0.0001452,2]
[334841431,1723607474811,-500.0,0.0001452,2]
[334841432,1723607474820,-889.01,0.0001452,2]
[334841433,1723607474829,-500.0,0.0001452,2]
[334841434,1723607474838,-2396.89,0.0001452,2]
[334841435,1723607474847,-1347.69,0.0001452,2]
[334841436,1723607474856,-500.0,0.0001452,2]
[334841437,1723607474865,-677.92,0.0001452,2]
[334841438,1723607474875,-6138.85,0.0001452,2]
[334841439,1723607474886,-9972.45,0.0001452,2]
[334841440,1723607474896,-1022.55,0.0001452,2]
[334841441,1723607474907,-500.0,0.0001452,2]
[334841442,1723607474917,-809.32,0.0001452,2]
[334841443,1723607474926,-642.44,0.0001452,2]
[334841444,1723607474935,-500.0,0.0001452,2]
[334841445,1723607474945,-8165.91,0.0001452,2]
[334841446,1723607474954,-1024.38,0.0001452,2]
[334841447,1723607474965,-2852.39,0.0001452,2]
[334841448,1723607474975,-499.81026194,0.0001452,2]
[334841449,1723607474984,-1105.51,0.0001452,2]
[334841450,1723607474993,-5016.05,0.0001452,2]
[334841451,1723607475003,-779.07,0.0001452,2]
[334841452,1723607475013,-2644.48,0.0001452,2]
[334841453,1723607475022,-4884.61,0.0001452,2]
[334841454,1723607475032,-5077.56,0.0001452,2]
[334841455,1723607475041,-500.0,0.0001452,2]
[334841456,1723607475051,-500.0,0.0001452,2]
[334841457,1723607475060,-500.0,0.0001452,2]
[334841458,1723607475070,-14387.22,0.0001452,2]
[334841459,1723607475080,-500.0,0.0001452,2]
[334841460,1723607475090,-6250.39,0.0001452,2]
[334841461,1723607475099,-700.09,0.0001452,2]
[334841462,1723607475109,-1108.79,0.0001452,2]
[334841463,1723607475120,-2760.64,0.0001452,2]
[334841464,1723607475138,-1348.31,0.0001452,2]
[334841465,1723607475152,-661.27,0.0001452,2]
[334841466,1723607475163,-860.11,0.0001452,2]
[334841467,1723607475175,-500.0,0.0001452,2]
[334841468,1723607475184,-844.08,0.0001452,2]
[334841469,1723607475194,-500.0,0.0001452,2]
[334841470,1723607475205,-7897.51,0.0001452,2]
[334841471,1723607475216,-500.0,0.0001452,2]
[334841472,1723607475225,-6779.45,0.0001452,2]
[334841473,1723607475235,-500.0,0.0001452,2]
[334841474,1723607475245,-2175.6,0.0001452,2]
[334841475,1723607475254,-1926.56,0.0001452,2]
[334841476,1723607475264,-500.0,0.0001452,2]
[334841477,1723607475274,-500.0,0.0001452,2]
[334841478,1723607475284,-7867.37,0.0001452,2]
[334841479,1723607475294,-966.36,0.0001452,2]
[334841480,1723607475304,-2876.73,0.0001452,2]
[334841481,1723607475313,-20943.27,0.0001452,2]
[334841482,1723607475323,-500.0,0.0001452,2]
[334841483,1723607475333,-500.0,0.0001452,2]
[334841484,1723607475343,-772.3,0.0001452,2]
[334841485,1723607475352,-513.11,0.0001452,2]
[334841486,1723607475362,-620.71,0.0001452,2]
[334841487,1723607475372,-500.0,0.0001452,2]
[334841488,1723607475382,-656.4,0.0001452,2]
[334841489,1723607475392,-500.0,0.0001452,2]
[334841490,1723607475402,-668.43,0.0001452,2]
[334841491,1723607475412,-818.88,0.0001452,2]
[334841492,1723607475423,-500.0,0.0001452,2]
[334841493,1723607475432,-500.0,0.0001452,2]
[334841494,1723607475442,-3735.01,0.0001452,2]
[334841495,1723607475451,-500.0,0.0001452,2]
[334841496,1723607475461,-12745.7,0.0001452,2]
[334841497,1723607475470,-1936.62,0.0001452,2]
[334841498,1723607475480,-1883.94,0.0001452,2]
[334841499,1723607475489,-4612.26,0.0001452,2]
[334841500,1723607475499,-500.0,0.0001452,2]
[334841501,1723607475509,-1326.52,0.0001452,2]
[334841502,1723607475519,-1144.63,0.0001452,2]
[334841503,1723607475528,-500.0,0.0001452,2]
[334841504,1723607475538,-3537.48,0.0001452,2]
[334841505,1723607475547,-23504.48,0.0001452,2]
[334841506,1723607475557,-500.0,0.0001452,2]
[334841507,1723607475566,-500.0,0.0001452,2]
[334841508,1723607475575,-500.0,0.0001452,2]
[334841509,1723607475585,-3439.86,0.0001452,2]
[334841510,1723607475595,-500.0,0.0001452,2]
[334841511,1723607475604,-1749.84,0.0001452,2]
[334841512,1723607475614,-500.0,0.0001452,2]
[334841513,1723607475623,-1169.49,0.0001452,2]
[334841514,1723607475634,-500.0,0.0001452,2]
[334841515,1723607475644,-2025.45,0.0001452,2]
[334841516,1723607475653,-861.16,0.0001452,2]
[334841517,1723607475663,-500.0,0.0001452,2]
[334841518,1723607475673,-500.0,0.0001452,2]
[334841519,1723607475682,-500.0,0.0001452,2]
[334841520,1723607475692,-7943.45,0.0001452,2]
[334841521,1723607475701,-500.0,0.0001452,2]
[334841522,1723607475712,-960.52,0.0001452,2]
[334841523,1723607475721,-13270.11,0.0001452,2]
[334841524,1723607475731,-731.33,0.0001452,2]
[334841525,1723607475740,-500.0,0.0001452,2]
[334841526,1723607475750,-1144.12,0.0001452,2]
[334841527,1723607475760,-1646.88,0.0001452,2]
[334841528,1723607475769,-789.39,0.0001452,2]
[334841529,1723607475779,-853.31,0.0001452,2]
[334841530,1723607475788,-2551.38,0.0001452,2]
[334841531,1723607475799,-867.71,0.0001452,2]
[334841532,1723607475808,-515.78834464,0.0001452,2]
[334841533,1723607475818,-5047.14,0.0001452,2]
[334841534,1723607475828,-1652.02,0.0001452,2]
[334841535,1723607475837,-3458.14,0.0001452,2]
[334841536,1723607475847,-500.0,0.0001452,2]
[334841537,1723607475856,-500.0,0.0001452,2]
[334841538,1723607475866,-500.0,0.0001452,2]
[334841539,1723607475876,-1116.13,0.0001452,2]
[334841540,1723607475887,-500.0,0.0001452,2]
[334841541,1723607475897,-500.0,0.0001452,2]
[334841542,1723607475907,-1828.19,0.0001452,2]
[334841543,1723607475918,-2030.16,0.0001452,2]
[334841544,1723607475928,-981.94,0.0001452,2]
[334841545,1723607475938,-500.0,0.0001452,2]
[334841546,1723607475948,-618.17,0.0001452,2]
[334841547,1723607475958,-816.29,0.0001452,2]
[334841548,1723607475968,-500.0,0.0001452,2]
[334841549,1723607475978,-1632.54,0.0001452,2]
[334841550,1723607475988,-1877.65,0.0001452,2]
[334841551,1723607475998,-500.0,0.0001452,2]
[334841552,1723607476008,-500.0,0.0001452,2]
[334841553,1723607476017,-3032.3,0.0001452,2]
[334841554,1723607476028,-2405.3,0.0001452,2]
[334841555,1723607476038,-527.4,0.0001452,2]
[334841556,1723607476048,-3859.03,0.0001452,2]
[334841557,1723607476059,-2540.67,0.0001452,2]
[334841558,1723607476068,-511.84,0.0001452,2]
[334841559,1723607476078,-5924.29,0.0001452,2]
[334841560,1723607476088,-500.0,0.0001452,2]
[334841561,1723607476099,-500.0,0.0001452,2]
[334841562,1723607476109,-714.75,0.0001452,2]
[334841563,1723607476122,-500.0,0.0001452,2]
[334841564,1723607476132,-194.61957486,0.0001452,2]
[334841565,1723607476143,-2044.59,0.0001452,2]
[334841566,1723607476152,-14638.33,0.0001452,2]
[334841567,1723607476162,-2856.42,0.0001452,2]
[334841568,1723607476173,-500.0,0.0001452,2]
[334841569,1723607476183,-3003.74,0.0001452,2]
[334841570,1723607476196,-6014.88,0.0001452,2]
[334841571,1723607476206,-1266.06,0.0001452,2]
[334841572,1723607476217,-2719.38,0.0001452,2]
[334841573,1723607476227,-500.0,0.0001452,2]
[334841574,1723607476237,-7501.73,0.0001452,2]
[334841575,1723607476247,-852.97,0.0001452,2]
[334841576,1723607476257,-500.0,0.0001452,2]
[334841577,1723607476267,-2454.88,0.0001452,2]
[334841578,1723607476277,-500.0,0.0001452,2]
[334841579,1723607476286,-1936.84,0.0001452,2]
[334841580,1723607476296,-1734.13,0.0001452,2]
[334841581,1723607476306,-500.0,0.0001452,2]
[334841582,1723607476316,-3081.75,0.0001452,2]
[334841583,1723607476327,-500.0,0.0001452,2]
[334841584,1723607476337,-500.0,0.0001452,2]
[334841585,1723607476347,-5008.91,0.0001452,2]
[334841586,1723607476358,-500.0,0.0001452,2]
[334841587,1723607476368,-500.0,0.0001452,2]
[334841588,1723607476379,-3352.55,0.0001452,2]
[334841589,1723607476391,-2136.98,0.0001452,2]
[334841590,1723607476401,-3579.33,0.0001452,2]
[334841591,1723607476412,-512.05,0.0001452,2]
[334841592,1723607476422,-292.96386629,0.0001452,2]
[334841593,1723607476433,-1834.77,0.0001452,2]
[334841594,1723607476443,-2280.59,0.0001452,2]
[334841595,1723607476453,-2616.01,0.0001452,2]
[334841596,1723607476463,-192.47151417,0.0001452,2]
[334841597,1723607476473,-500.0,0.0001452,2]
[334841598,1723607476483,-621.9,0.0001452,2]
[334841599,1723607476493,-500.0,0.0001452,2]
[334841600,1723607476503,-4828.17,0.0001452,2]
[334841601,1723607476512,-500.0,0.0001452,2]